fUSD/lending_fUSD_20260225
["ID","MTS","AMOUNT","RATE_DAILY","PERIOD"]
[406630185,1771996243844,-613.0,0.00017541,2]
[406630187,1771996243854,-2100.0,0.000176,6]
[406630189,1771996243863,-482.68429025,0.00017634,2]
[406630191,1771996243872,-482.68771533,0.00017634,2]
[406630193,1771996243882,-482.68429033,0.00017634,2]
[406630195,1771996243892,-1706.0844629,0.0001764,2]
[406630197,1771996243901,-400.0,0.000177,6]
[406630199,1771996243910,-2534.50722944,0.00017799,2]
[406630201,1771996243919,-400.0,0.000178,6]
[406630203,1771996243928,-800.0,0.00017808,2]
[406630205,1771996243937,-7012.12237031,0.0001783,2]
[406630207,1771996243946,-2534.50722943,0.0001785,2]
[406630209,1771996243955,-10000.0,0.00017899,2]
[406630211,1771996243965,-500.0,0.00017899,2]
[406630213,1771996243974,-873.09,0.00017899,2]
[406630215,1771996243983,-698.6,0.00017899,2]
[406630217,1771996243992,-2240.7232043,0.000179,3]
[406630219,1771996244001,-15579.80235494,0.000179,2]
[406630221,1771996244011,-400.0,0.000179,6]
[406630223,1771996244020,-701.55589876,0.000179,3]
[406630225,1771996244029,-1895.165434,0.000179,2]
[406630227,1771996244038,-2534.50722943,0.000179,2]
[406630230,1771996244048,-24820.76206605,0.000179,2]
[406630231,1771996244057,-3872.43430915,0.000179,2]
[406630234,1771996244067,-81202.8493419,0.00017975,2]
[406630236,1771996244076,-3269.3359643,0.00017975,2]
[406630237,1771996244086,-10784.8379264,0.00017975,2]
[406630240,1771996244096,-10754.1319968,0.00017975,2]
[406630242,1771996244105,-889.9694585,0.00017975,2]
[406630244,1771996244114,-11407.524593,0.00017975,2]
[406630246,1771996244130,-893.910438,0.0001799,2]
[406630248,1771996244140,-893.910438,0.0001799,2]
[406630250,1771996244149,-500.0,0.00017997,2]
[406630252,1771996244158,-500.0,0.00017997,2]
[406630254,1771996244167,-500.0,0.00017997,2]
[406630256,1771996244176,-1045.94,0.00017997,2]
[406630258,1771996244186,-500.0,0.00017997,2]
[406630260,1771996244195,-500.0,0.00017997,2]
[406630262,1771996244206,-154.86311374,0.00017997,2]
[406630264,1771996244214,-300.0,0.00017999,2]
[406630266,1771996244224,-160.16969127,0.00017999,2]
[406630270,1771996244414,-500.0,0.00017999,2]
[406630271,1771996244427,-500.0,0.00017999,2]
[406630272,1771996244436,-500.0,0.00017999,2]
[406630273,1771996244446,-500.0,0.00017999,2]
[406630274,1771996244457,-500.0,0.00017999,2]
[406630275,1771996244466,-638.1310629,0.00017999,2]
[406630276,1771996244475,-500.0,0.00017999,2]
[406630277,1771996244484,-500.0,0.00017999,2]
[406630278,1771996244493,-500.0,0.00017999,2]
[406630279,1771996244502,-500.0,0.00017999,2]
[406630280,1771996244511,-500.0,0.00017999,2]
[406630281,1771996244520,-500.0,0.00017999,2]
[406630282,1771996244531,-386.19326799,0.00017999,2]
[406630283,1771996244541,-300.0,0.00017999,2]
[406630284,1771996244550,-500.0,0.00017999,2]
[406630285,1771996244559,-500.0,0.00017999,2]
[406630286,1771996244569,-500.0,0.00017999,2]
[406630287,1771996244579,-500.0,0.00017999,2]
[406630288,1771996244589,-500.0,0.00017999,2]
[406630289,1771996244598,-500.0,0.00017999,2]
[406630290,1771996244608,-500.0,0.00017999,2]
[406630291,1771996244617,-500.0,0.00017999,2]
[406630292,1771996244626,-597.30416572,0.00017999,2]
[406630293,1771996244636,-300.0,0.00017999,2]
[406630294,1771996244645,-666.0,0.00017999,2]
[406630295,1771996244654,-1045.94,0.00017999,2]
[406630296,1771996244666,-1045.94,0.00017999,2]
[406630297,1771996244675,-1045.94,0.00017999,2]
[406630298,1771996244684,-1045.94,0.00017999,2]
[406630299,1771996244694,-1045.94,0.00017999,2]
[406630300,1771996244703,-1045.94,0.00017999,2]
[406630301,1771996244712,-1045.94,0.00017999,2]
[406630302,1771996244722,-1045.94,0.00017999,2]
[406630303,1771996244731,-1045.94,0.00017999,2]
[406630304,1771996244740,-1045.94,0.00017999,2]
[406630305,1771996244750,-1045.94,0.00017999,2]
[406630306,1771996244766,-1046.05716129,0.00017999,2]
[406630307,1771996244786,-500.0,0.00017999,2]
[406630308,1771996244806,-500.0,0.00017999,2]
[406630309,1771996244816,-151.3981792,0.00017999,2]
[406630310,1771996244826,-873.09,0.00017999,2]
[406630311,1771996244835,-873.09,0.00017999,2]
[406630312,1771996244846,-873.09,0.00017999,2]
[406630313,1771996244856,-873.09,0.00017999,2]
[406630314,1771996244867,-873.09,0.00017999,2]
[406630315,1771996244877,-873.09,0.00017999,2]
[406630316,1771996244887,-873.09,0.00017999,2]
[406630317,1771996244897,-873.09,0.00017999,2]
[406630318,1771996244907,-873.09,0.00017999,2]
[406630319,1771996244918,-873.09,0.00017999,2]
[406630320,1771996244929,-873.09,0.00017999,2]
[406630321,1771996244938,-873.24855363,0.00017999,2]
[406630322,1771996244949,-500.0,0.00017999,2]
[406630323,1771996244958,-500.0,0.00017999,2]
[406630324,1771996244968,-500.0,0.00017999,2]
[406630325,1771996244977,-237.85424524,0.00017999,2]
[406630326,1771996244989,-698.6,0.00017999,2]
[406630327,1771996244998,-698.6,0.00017999,2]
[406630328,1771996245009,-698.6,0.00017999,2]
[406630329,1771996245018,-698.6,0.00017999,2]
[406630330,1771996245029,-698.6,0.00017999,2]
[406630331,1771996245039,-698.6,0.00017999,2]
[406630332,1771996245048,-698.6,0.00017999,2]
[406630333,1771996245062,-698.6,0.00017999,2]
[406630334,1771996245084,-698.6,0.00017999,2]
[406630335,1771996245101,-698.6,0.00017999,2]
[406630336,1771996245113,-698.6,0.00017999,2]
[406630337,1771996245124,-698.61701004,0.00017999,2]
[406630338,1771996245135,-500.0,0.00017999,2]
[406630339,1771996245145,-509.25704796,0.00017999,2]
[406630340,1771996245155,-300.0,0.00017999,2]
[406630341,1771996245164,-300.0,0.00017999,2]
[406630342,1771996245174,-666.0,0.00017999,2]
[406630343,1771996245183,-300.0,0.00017999,2]
[406630344,1771996245192,-666.0,0.00017999,2]
[406630345,1771996245202,-4091072.43052135,0.00018,2]
[406630346,1771996245219,-489.75807187,0.00018,2]
[406630347,1771996245230,-25994.80097107,0.00018,2]
[406630348,1771996245240,-4876.5435198,0.00018,2]
[406630349,1771996245253,-574.744,0.00018,2]
[406630350,1771996245268,-1685.2929534,0.000179,2]
[406630351,1771996245279,-2307.9,0.000179,2]
[406630352,1771996245290,-1578.28440737,0.000179,2]
[406630353,1771996245301,-9028.64033691,0.000179,2]
[406630354,1771996245311,-302888.75600409,0.00018,2]
[406630355,1771996245322,-79749.78673081,0.00018,2]
[406630356,1771996246239,-389.539074,0.00013905,7]
[406630357,1771996246248,-2292.91586415,0.00018,2]
[406630358,1771996309692,500.0,0.00045818,120]
[406630359,1771996309918,506.58250099,0.00045818,120]
[406630360,1771996329829,300.0,9.8e-05,3]
[406630361,1771996331926,600.0,9.9e-05,3]
[406630362,1771996334011,900.0,0.0001,3]
[406630378,1771996598345,300.0,9.8e-05,3]
[406630379,1771996600567,700.0,9.9e-05,3]
[406630380,1771996602549,1000.0,0.0001,3]
[406630382,1771996657848,20858.33,0.00045818,120]
[406630383,1771996658076,20858.33,0.00045818,120]
[406630384,1771996658340,20858.33,0.00045818,120]
[406630385,1771996658588,20858.33,0.00045818,120]
[406630386,1771996658849,20858.33,0.00045818,120]
[406630387,1771996659081,20858.33,0.00045818,120]
[406630388,1771996659339,20858.33,0.00045818,120]
[406630389,1771996659579,20858.33,0.00045818,120]
[406630390,1771996659806,20858.33,0.00045818,120]
[406630391,1771996660033,20858.33,0.00045818,120]
[406630392,1771996660264,20858.33,0.00045818,120]
[406630393,1771996660494,20858.33,0.00045818,120]
[406630394,1771996660718,20858.33,0.00045818,120]
[406630395,1771996660956,20858.33,0.00045818,120]
[406630396,1771996661183,20858.33,0.00045818,120]
[406630397,1771996661664,20858.33,0.00045818,120]
[406630398,1771996661693,20858.33,0.00045818,120]
[406630399,1771996661919,20858.33,0.00045818,120]
[406630400,1771996662152,20858.33,0.00045818,120]
[406630401,1771996662386,20858.33,0.00045818,120]
[406630402,1771996662657,20858.33,0.00045818,120]
[406630403,1771996662895,20858.33,0.00045818,120]
[406630404,1771996663130,20858.33,0.00045818,120]
[406630405,1771996663370,20858.41051061,0.00045818,120]
[406630406,1771996884861,500.0,0.00045817,120]
[406630413,1771997050805,170.86941476,0.00045817,120]
[406630414,1771997238488,500.0,9.8e-05,3]
[406630415,1771997240567,1000.0,9.9e-05,3]
[406630416,1771997242723,1600.0,0.0001,3]
[406630423,1771997431358,-500.0,8.157e-05,2]
[406630425,1771997431367,-250.0,8.157e-05,2]
[406630427,1771997431376,-25.90810714,8.913e-05,2]
[406630429,1771997431473,-274.09189286,8.913e-05,2]
[406630430,1771997431483,-1200.0,8.913e-05,2]
[406630431,1771997431492,-300.0,8.913e-05,2]
[406630432,1771997431501,-150.0,8.913e-05,2]
[406630433,1771997431510,-171481.77117836,8.914e-05,2]
[406630434,1771997431520,-250.0,8.973e-05,2]
[406630435,1771997431529,-250.0,8.973e-05,2]
[406630436,1771997431538,-332.9363957,9.399e-05,2]
[406630437,1771997431547,-500.0,9.399e-05,2]
[406630438,1771997431556,-500.0,9.399e-05,2]
[406630439,1771997431566,-500.0,9.399e-05,2]
[406630440,1771997431575,-500.0,9.399e-05,2]
[406630441,1771997431584,-500.0,9.399e-05,2]
[406630442,1771997431598,-332.11139227,9.399e-05,2]
[406630443,1771997431607,-500.0,9.399e-05,2]
[406630444,1771997431617,-500.0,9.399e-05,2]
[406630445,1771997431627,-500.0,9.399e-05,2]
[406630446,1771997431638,-500.0,9.399e-05,2]
[406630447,1771997431648,-500.0,9.399e-05,2]
[406630448,1771997431658,-500.0,9.399e-05,2]
[406630449,1771997431667,-500.0,9.399e-05,2]
[406630450,1771997431676,-500.0,9.399e-05,2]
[406630451,1771997431685,-500.0,9.399e-05,2]
[406630452,1771997431694,-500.0,9.399e-05,2]
[406630453,1771997431703,-500.0,9.399e-05,2]
[406630454,1771997431713,-500.0,9.399e-05,2]
[406630455,1771997431724,-500.0,9.399e-05,2]
[406630456,1771997431733,-500.0,9.399e-05,2]
[406630457,1771997431743,-500.0,9.399e-05,2]
[406630458,1771997431753,-500.0,9.399e-05,2]
[406630459,1771997431763,-500.0,9.399e-05,2]
[406630460,1771997431777,-500.0,9.399e-05,2]
[406630461,1771997431786,-500.0,9.399e-05,2]
[406630462,1771997431797,-500.0,9.399e-05,2]
[406630463,1771997431807,-500.0,9.399e-05,2]
[406630464,1771997431819,-500.0,9.399e-05,2]
[406630465,1771997431829,-500.0,9.399e-05,2]
[406630466,1771997431839,-500.0,9.399e-05,2]
[406630467,1771997431848,-500.0,9.399e-05,2]
[406630468,1771997431858,-139292.82789917,9.4e-05,2]
[406630469,1771997431870,-17407.56267077,9.4e-05,2]
[406630470,1771997431881,-574.56373721,9.4e-05,2]
[406630471,1771997431892,-1772.55334381,9.4e-05,2]
[406630472,1771997431908,-805.848,9.4e-05,2]
[406630473,1771997431920,-1329.19405074,9.4e-05,2]
[406630475,1771997437503,-801.07484902,8.913e-05,2]
[406630476,1771997437518,-64.29588245,8.913e-05,2]
[406630477,1771997437529,-557.85731055,9.4e-05,2]
[406630478,1771997437571,-496.2484482,9.4e-05,2]
[406630480,1771997437695,-352.98,9.4e-05,2]
[406630481,1771997437709,-2890.40170582,9.4e-05,2]
[406630482,1771997437724,-2418.07525,9.4e-05,2]
[406630506,1771997439585,-1832101.88758373,9.4e-05,2]
[406630507,1771997439594,-2896.132,9.408e-05,2]
[406630508,1771997439603,-239.587,9.408e-05,2]
[406630509,1771997439612,-1000.0,9.499e-05,2]
[406630510,1771997439621,-6241.44075801,9.5e-05,2]
[406630511,1771997439630,-8510.30015657,9.5e-05,2]
[406630512,1771997439640,-13254.57060004,9.5e-05,2]
[406630513,1771997439649,-3170.3681435,9.5e-05,2]
[406630514,1771997439658,-15251.84071753,9.5e-05,2]
[406630515,1771997439667,-2500.0,9.5e-05,2]
[406630516,1771997439676,-500.0,9.5e-05,2]
[406630517,1771997439685,-305.32,9.599e-05,2]
[406630518,1771997439695,-9999.99,9.6e-05,2]
[406630519,1771997439706,-150.99,9.6e-05,2]
[406630520,1771997439715,-8906.11,9.628e-05,2]
[406630521,1771997439725,-2836.9754,9.7e-05,2]
[406630522,1771997439735,-1600.0,9.702e-05,2]
[406630523,1771997439746,-500.0,9.774e-05,2]
[406630524,1771997439755,-420.0,9.804e-05,2]
[406630525,1771997439770,-1680.0,9.804e-05,2]
[406630526,1771997439783,-255.0,9.804e-05,2]
[406630527,1771997439793,-1098.18203928,9.839e-05,2]
[406630528,1771997439803,-305.32,9.873e-05,2]
[406630529,1771997439814,-1000.0,9.9e-05,2]
[406630530,1771997439824,-1000.0,9.999e-05,2]
[406630531,1771997439834,-151.0,0.0001,2]
[406630532,1771997439845,-151.0,0.0001,2]
[406630533,1771997439856,-151.0,0.0001,2]
[406630534,1771997439865,-151.0,0.0001,2]
[406630535,1771997439876,-151.0,0.0001,2]
[406630536,1771997439886,-151.0,0.0001,2]
[406630537,1771997439895,-151.0,0.0001,2]
[406630538,1771997439905,-151.0,0.0001,2]
[406630539,1771997439914,-151.0,0.0001,2]
[406630540,1771997439924,-151.0,0.0001,2]
[406630541,1771997439936,-151.0,0.0001,2]
[406630542,1771997439947,-151.0,0.0001,2]
[406630543,1771997439958,-151.0,0.0001,2]
[406630544,1771997439967,-151.0,0.0001,2]
[406630545,1771997439978,-151.0,0.0001,2]
[406630546,1771997439987,-151.0,0.0001,2]
[406630547,1771997439996,-151.0,0.0001,2]
[406630548,1771997440006,-151.0,0.0001,2]
[406630549,1771997440015,-151.0,0.0001,2]
[406630550,1771997440025,-151.0,0.0001,2]
[406630551,1771997440034,-151.0,0.0001,2]
[406630552,1771997440043,-151.0,0.0001,2]
[406630553,1771997440053,-151.0,0.0001,2]
[406630554,1771997440062,-151.0,0.0001,2]
[406630555,1771997440071,-151.0,0.0001,2]
[406630556,1771997440080,-151.0,0.0001,2]
[406630557,1771997440089,-151.0,0.0001,2]
[406630558,1771997440099,-151.0,0.0001,2]
[406630559,1771997440108,-151.0,0.0001,2]
[406630560,1771997440117,-151.0,0.0001,2]
[406630561,1771997440126,-151.0,0.0001,2]
[406630562,1771997440135,-151.0,0.0001,2]
[406630563,1771997440144,-151.0,0.0001,2]
[406630565,1771997440153,-151.0,0.0001,2]
[406630567,1771997440164,-151.0,0.0001,2]
[406630568,1771997440173,-151.0,0.0001,2]
[406630569,1771997440186,-151.0,0.0001,2]
[406630570,1771997440195,-151.0,0.0001,2]
[406630571,1771997440205,-151.0,0.0001,2]
[406630572,1771997440215,-151.0,0.0001,2]
[406630573,1771997440224,-190.83105765,0.0001,2]
[406630574,1771997440233,-1967.31764889,0.0001,2]
[406630575,1771997440242,-893.910438,0.0001,2]
[406630576,1771997440251,-1465.63717247,0.0001,2]
[406630577,1771997440260,-308.29697349,0.00010048,2]
[406630578,1771997440270,-305.33,0.00010147,2]
[406630579,1771997440279,-500.0,0.00010189,2]
[406630581,1771997440288,-500.0,0.00010189,2]
[406630583,1771997440298,-500.0,0.00010244,2]
[406630584,1771997440307,-500.0,0.00010244,2]
[406630585,1771997440317,-335.67639668,0.00010285,2]
[406630586,1771997440327,-500.0,0.00010299,2]
[406630587,1771997440337,-500.0,0.00010299,2]
[406630588,1771997440347,-500.0,0.00010353,2]
[406630589,1771997440356,-343.66750726,0.00010353,2]
[406630590,1771997440366,-500.0,0.00010408,2]
[406630591,1771997440375,-500.0,0.00010463,2]
[406630592,1771997440384,-500.0,0.00010518,2]
[406630593,1771997440393,-500.0,0.00010573,2]
[406630594,1771997440401,-500.0,0.00010573,2]
[406630595,1771997440410,-500.34608297,0.00010573,2]
[406630596,1771997440419,-500.0,0.00010573,2]
[406630597,1771997440430,-500.0,0.00010573,2]
[406630598,1771997440439,-500.0,0.00010573,2]
[406630599,1771997440448,-500.0,0.00010573,2]
[406630600,1771997440457,-500.0,0.00010573,2]
[406630601,1771997440465,-323.87443356,0.00010627,2]
[406630602,1771997440474,-250.0,0.00010778,2]
[406630603,1771997440484,-587.0,0.00010785,2]
[406630604,1771997440493,-2351.0,0.00010785,2]
[406630605,1771997440502,-433.0,0.00010785,2]
[406630606,1771997440511,-3872.43430921,0.000109,2]
[406630607,1771997440534,-3872.43430915,0.000109,2]
[406630608,1771997440543,-1600.0,0.00010915,2]
[406630609,1771997440552,-24820.76206608,0.00011099,2]
[406630610,1771997440561,-24820.76206605,0.00011099,2]
[406630611,1771997440570,-15579.80235503,0.00011099,2]
[406630612,1771997440579,-15579.80235494,0.00011099,2]
[406630613,1771997440589,-15579.80235494,0.00011099,2]
[406630614,1771997440598,-1000.0,0.00011121,2]
[406630615,1771997440606,-1000.0,0.00011121,2]
[406630616,1771997440615,-1000.0,0.00011121,2]
[406630617,1771997440624,-1000.0,0.00011121,2]
[406630618,1771997440633,-24820.76206605,0.00011217,2]
[406630619,1771997440642,-166.66,0.00011348,2]
[406630620,1771997440651,-1500.0,0.00011668,2]
[406630621,1771997440659,-1500.0,0.00011668,2]
[406630622,1771997440668,-1500.0,0.00011668,2]
[406630623,1771997440677,-1500.0,0.00011668,2]
[406630624,1771997440686,-166.66,0.00011722,2]
[406630625,1771997440695,-3872.43430915,0.00011762,2]
[406630626,1771997440704,-823.0,0.00011863,2]
[406630627,1771997440713,-2284.0,0.00011863,2]
[406630628,1771997440722,-736.0,0.00011863,2]
[406630629,1771997440732,-15579.80235494,0.00011882,2]
[406630630,1771997440741,-166.66,0.00012097,2]
[406630631,1771997440750,-420.46,0.00012106,2]
[406630632,1771997440759,-1600.0,0.00012128,2]
[406630633,1771997440771,-24820.76206605,0.00012171,2]
[406630634,1771997440781,-2000.0,0.00012216,2]
[406630635,1771997440790,-2000.0,0.00012216,2]
[406630636,1771997440799,-2000.0,0.00012216,2]
[406630637,1771997440810,-2000.0,0.00012216,2]
[406630638,1771997440819,-166.66,0.00012471,2]
[406630639,1771997440828,-5000.01,0.00012639,2]
[406630640,1771997440837,-150.0,0.00012643,2]
[406630641,1771997440846,-719.45005245,0.00012722,2]
[406630642,1771997440855,-500.0,0.00012764,2]
[406630643,1771997440864,-500.0,0.00012764,2]
[406630644,1771997440874,-500.0,0.00012764,2]
[406630645,1771997440883,-500.0,0.00012764,2]
[406630646,1771997440892,-150.0,0.00012837,2]
[406630647,1771997440901,-166.66,0.00012846,2]
[406630648,1771997440910,-15579.80235494,0.00012885,2]
[406630649,1771997440919,-3872.43430915,0.0001299,2]
[406630650,1771997440929,-1152.0,0.00013049,2]
[406630651,1771997440938,-1252.0,0.00013049,2]
[406630652,1771997440947,-5367.58631391,0.0001305,2]
[406630653,1771997440956,-24820.76206605,0.00013126,2]
[406630654,1771997440965,-166.66,0.0001322,2]
[406630655,1771997440975,-1600.0,0.0001334,2]
[406630656,1771997440984,-1000.0,0.000135,2]
[406630657,1771997440993,-1895.16543401,0.00013598,2]
[406630658,1771997441003,-1465.63717247,0.00013604,2]
[406630659,1771997441012,-500.0,0.00013698,2]
[406630660,1771997441021,-500.0,0.00013698,2]
[406630661,1771997441030,-500.0,0.00013698,2]
[406630662,1771997441039,-500.0,0.00013698,2]
[406630663,1771997441048,-500.0,0.00013698,2]
[406630664,1771997441057,-500.0,0.00013698,2]
[406630665,1771997441067,-500.0,0.00013698,2]
[406630666,1771997441076,-500.0,0.00013698,2]
[406630667,1771997441085,-500.0,0.00013698,2]
[406630668,1771997441095,-500.0,0.00013698,2]
[406630669,1771997441103,-500.0,0.00013698,2]
[406630670,1771997441112,-500.0,0.00013698,2]
[406630671,1771997441121,-500.0,0.00013698,2]
[406630672,1771997441130,-500.0,0.00013698,2]
[406630673,1771997441139,-500.0,0.00013698,2]
[406630674,1771997441147,-500.0,0.00013698,2]
[406630675,1771997441156,-506.76,0.00013698,2]
[406630676,1771997441165,-500.0,0.00013698,2]
[406630677,1771997441174,-500.0,0.00013698,2]
[406630678,1771997441184,-500.0,0.00013698,2]
[406630679,1771997441193,-500.0,0.00013698,2]
[406630680,1771997441202,-410.03196276,0.00013698,2]
[406630681,1771997441210,-500.0,0.00013698,2]
[406630682,1771997441220,-500.0,0.00013698,2]
[406630683,1771997441229,-500.0,0.00013698,2]
[406630684,1771997441238,-500.0,0.00013698,2]
[406630685,1771997441247,-500.0,0.00013698,2]
[406630686,1771997441256,-500.0,0.00013698,2]
[406630687,1771997441265,-500.0,0.00013698,2]
[406630688,1771997441274,-500.0,0.00013698,2]
[406630689,1771997441283,-500.0,0.00013698,2]
[406630690,1771997441292,-500.0,0.00013698,2]
[406630691,1771997441301,-1045.94,0.00013698,2]
[406630692,1771997441311,-1045.94,0.00013698,2]
[406630693,1771997441320,-1045.94,0.00013698,2]
[406630694,1771997441329,-1045.94,0.00013698,2]
[406630695,1771997441338,-1045.94,0.00013698,2]
[406630696,1771997441348,-1045.94,0.00013698,2]
[406630697,1771997441357,-1045.94,0.00013698,2]
[406630698,1771997441367,-1045.94,0.00013698,2]
[406630699,1771997441376,-1045.94,0.00013698,2]
[406630700,1771997441385,-1045.94,0.00013698,2]
[406630701,1771997441395,-500.0,0.00013698,2]
[406630702,1771997441403,-500.0,0.00013698,2]
[406630703,1771997441413,-500.0,0.00013698,2]
[406630704,1771997441421,-500.0,0.00013698,2]
[406630705,1771997441431,-500.0,0.00013698,2]
[406630706,1771997441440,-500.0,0.00013698,2]
[406630707,1771997441449,-500.0,0.00013698,2]
[406630708,1771997441459,-500.0,0.00013698,2]
[406630709,1771997441468,-500.0,0.00013698,2]
[406630710,1771997441477,-500.0,0.00013698,2]
[406630711,1771997441487,-500.0,0.00013698,2]
[406630712,1771997441496,-330.0,0.00013698,2]
[406630713,1771997441505,-873.09,0.00013698,2]
[406630714,1771997441514,-873.09,0.00013698,2]
[406630715,1771997441523,-873.09,0.00013698,2]
[406630716,1771997441533,-873.09,0.00013698,2]
[406630717,1771997441542,-873.09,0.00013698,2]
[406630718,1771997441551,-873.09,0.00013698,2]
[406630719,1771997441560,-873.09,0.00013698,2]
[406630720,1771997441569,-873.09,0.00013698,2]
[406630721,1771997441578,-873.09,0.00013698,2]
[406630722,1771997441587,-698.6,0.00013698,2]
[406630723,1771997441596,-698.6,0.00013698,2]
[406630724,1771997441605,-698.6,0.00013698,2]
[406630725,1771997441614,-698.6,0.00013698,2]
[406630726,1771997441624,-698.6,0.00013698,2]
[406630727,1771997441633,-698.6,0.00013698,2]
[406630728,1771997441642,-698.6,0.00013698,2]
[406630729,1771997441651,-698.6,0.00013698,2]
[406630730,1771997441660,-698.6,0.00013698,2]
[406630731,1771997441669,-500.0,0.00013698,2]
[406630732,1771997441680,-500.0,0.00013698,2]
[406630733,1771997441690,-597.74114935,0.00013698,2]
[406630734,1771997441829,-500.0,0.00013698,2]
[406630735,1771997441839,-500.0,0.00013698,2]
[406630736,1771997441848,-500.0,0.00013698,2]
[406630737,1771997441858,-500.0,0.00013698,2]
[406630738,1771997441867,-500.0,0.00013698,2]
[406630739,1771997441876,-500.0,0.00013698,2]
[406630740,1771997441885,-500.0,0.00013698,2]
[406630741,1771997441894,-500.0,0.00013698,2]
[406630742,1771997441904,-500.0,0.00013698,2]
[406630743,1771997441914,-500.0,0.00013698,2]
[406630744,1771997441924,-500.0,0.00013698,2]
[406630745,1771997441935,-500.0,0.00013698,2]
[406630746,1771997441945,-500.0,0.00013698,2]
[406630747,1771997441955,-500.0,0.00013698,2]
[406630748,1771997441965,-500.0,0.00013698,2]
[406630749,1771997441975,-500.0,0.00013698,2]
[406630750,1771997441984,-500.0,0.00013698,2]
[406630751,1771997441993,-500.0,0.00013698,2]
[406630752,1771997442002,-500.0,0.00013698,2]
[406630753,1771997442012,-500.0,0.00013698,2]
[406630754,1771997442022,-500.0,0.00013698,2]
[406630755,1771997442032,-500.0,0.00013698,2]
[406630756,1771997442041,-500.0,0.00013698,2]
[406630757,1771997442051,-500.0,0.00013698,2]
[406630758,1771997442060,-500.0,0.00013698,2]
[406630759,1771997442070,-500.0,0.00013698,2]
[406630760,1771997442079,-500.0,0.00013698,2]
[406630761,1771997442089,-500.0,0.00013698,2]
[406630762,1771997442098,-500.0,0.00013698,2]
[406630763,1771997442107,-500.0,0.00013698,2]
[406630764,1771997442116,-500.0,0.00013698,2]
[406630765,1771997442126,-500.0,0.00013698,2]
[406630766,1771997442135,-500.0,0.00013698,2]
[406630767,1771997442145,-500.0,0.00013698,2]
[406630768,1771997442154,-500.0,0.00013698,2]
[406630769,1771997442163,-500.0,0.00013698,2]
[406630770,1771997442172,-532.53256968,0.00013698,2]
[406630771,1771997442181,-4264.13,0.00013813,2]
[406630772,1771997442191,-4591.85,0.00013881,2]
[406630773,1771997442201,-15579.80235494,0.00013888,2]
[406630774,1771997442210,-2100.0,0.000139,5]
[406630775,1771997442219,-160.0,0.00013996,2]
[406630776,1771997442228,-173.91437885,0.00013996,2]
[406630777,1771997442237,-24820.76206605,0.00014081,2]
[406630778,1771997442246,-3872.43430915,0.00014217,2]
[406630779,1771997442255,-4549.110103,0.00014248,7]
[406630780,1771997442265,-873.09,0.00014255,2]
[406630781,1771997442274,-698.6,0.00014255,2]
[406630782,1771997442284,-1613.0,0.00014354,2]
[406630783,1771997442293,-2129.0,0.00014359,2]
[406630784,1771997442303,-1600.0,0.00014553,2]
[406630785,1771997442313,-160.08356589,0.00014576,7]
[406630787,1771997442322,-15579.80235494,0.00014891,2]
[406630788,1771997442331,-1982.35241964,0.00015,7]
[406630789,1771997442341,-250.0,0.00015,2]